Workbook

Sheet Start
AD1: 0 | AE1: Start
H2: Modul 03 : BWL - Grundbegriffe | AD2: =AD1+1 -> 1 | AE2: 01_Gruendungsphasen
AD3: =AD2+1 -> 2 | AE3: 02_Geschaeftsidee
M4: Zu dieser Datei: | AD4: 3 | AE4: 03_Entscheidungen
M5: Für die Bewertung des wirtschaftlichen Erfolgs im Geschäftsbetrieb eines Unternehmens wird die | AD5: 4 | AE5: 04_Standort
M6: Differenz zwischen den periodenbezogenen Erträgen und den periodenbezogenen Aufwendungen | AD6: 5 | AE6: 05_Rechtsform
M7: im Sinne von "Gewinn" (Erträge > Aufwendungen)" bzw. "Verlust" (Erträge < Aufwendungen) heran- | AD7: 6 | AE7: 06_Startfinanzierung
M8: gezogen. | AD8: 7 | AE8: 07_Businessplan
M9: Das Problem besteht nun darin, dass ein Unternehmen durchaus einen Gewinn ausweisen kann, aber | AD9: 8 | AE9: 08_BWL_Grundbegriffe
M10: dennoch große Probleme in der Unternehmensfinanzierung hat, weil liquide Mittel (="Cash") fehlen! | AD10: 9 | AE10: 09_Entscheidungstest 1
M12: Oder aber, es wird kein Verlust ausgewiesen, und dennoch hat das Unternehmen ausreichend "Cash"
M13: zur Verfügung!
M14: Dies hängt damit zusammen, dass erzielte Erträge nicht oder erst säter zu Einzahlungen führen oder
M15: Auzahlungen zu tätigen sind, die nicht als Aufwendungen rechnen u. a.
M16: In diesem Wissenstest soll anhand eines Fallbeispiels der Unterschied zwischen einer Erfolgs-
M17: rechnung und einer Kapitalflussrechnung (Cashflowrechnung) verdeutlicht werden.

Sheet Daten
C3: Wissenstest Erfolgsrechnung (GuV, CF)
C5: =CONCATENATE("Das Unternehmen MaBau GmbH weist für das II. Quartal des Geschäftsjahres " & YEAR(NOW())-1 & " (Zeitraum T) die in nachstehender") -> Das Unternehmen MaBau GmbH weist für das II. Quartal des Geschäftsjahres 2020 (Zeitraum T) die in nachstehender
C6: Tabelle aufgeführten Daten aus.
C8: Aufgaben:
C9: 1. | D9: Erstellen Sie aus diesen Angaben eine Erfolgsrechnung mit Ausweis des Betriebsergebnisses, des Finanz-
D10: ergebnisses, des Ergebnisses der gewöhnlichen Geschäftstätigkeit, des außerordentlichen Ergebnisses
D11: und des Ergebnisses vor Ertragsteuern!
C12: 2. | D12: Erstellen Sie ferner eine Casflow-Rechnung (mit Einzahlungen, Auszahlungen) und geben Sie den Endbestand
D13: an liquiden Mitteln an!
C14: Nutzen Sie hierfür die vorbereiteten Tabellen
C16: Daten
C18: Nr. | D18: Einzelposition | E18: Einzelwert [EUR] | F18: davon im Zeitraum T gezahlt | G18: erle-digt
C19: 01 | D19: Anfangsbestand an fertigen Erzeugnissen (zu Herstellungskosten, HStK) | E19: 40000
C20: 02 | D20: Verkäufe von Fertigerzeugnissen (zu Netto-Verkaufspreisen, VkP) | E20: 480000 | F20: 195000
C21: 03 | D21: Endbestand an fertigen Erzeugnissen (zu HStK) | E21: 75000
C22: 04 | D22: Aktivierung einer selbst erstellten Betriebsvorrichtung (zu HStK) | E22: 12000
C23: 05 | D23: Erlöse aus Kantinen-Geschäften (zu VkP) | E23: 1200 | F23: =E23 -> 1200
C24: 06 | D24: Verkauf einer nicht mehr benötigten Maschine (Buchwert 20.000 EUR) | E24: 26000 | F24: =E24 -> 26000
C25: 07 | D25: Einkauf von Rohstoffen und anderen Vorprodukten (Nettopreise) | E25: 75000 | F25: 45000
C26: 09 | D26: Materialverbrauch in der Periode T | E26: 145000
C27: 10 | D27: Aufwendungen für bezogene Leistungen in der Periode T (netto) | E27: 35000 | F27: =E27 -> 35000
C28: 11 | D28: Löhne und Gehälter in der Periode T | E28: 95000 | F28: =E28 -> 95000
C29: 12 | D29: Soziale Abgaben (Arbeitgeberanteile) in der Periode T | E29: 38000 | F29: =E29 -> 38000
C30: 13 | D30: Verrechnete Abschreibungen auf Sachanlagen in Periode T | E30: 32000
C31: 14 | D31: Sonstige betriebliche Aufwendungen in der Periode T | E31: 35000 | F31: =E31 -> 35000
C32: 15 | D32: Sonstige (abzugsfähige) Steuern (Grundsteuer, Kfz-Steuer) | E32: 29000 | F32: =E32 -> 29000
C33: 16 | D33: Zinserträge in der Periode T | E33: 2000 | F33: =E33 -> 2000
C34: 17 | D34: Zinsaufwendungen in der Periode T | E34: 5000 | F34: =E34 -> 5000
C35: 18 | D35: Tilgung von Krediten in der Periode T | E35: 58000 | F35: =E35 -> 58000
C36: 19 | D36: Vorgenommene außerplanmäßige Abschreibungen auf Sachanlagen | E36: 3500
C37: 20 | D37: Erhaltene Zuschüsse vom Staat für Umweltschutzmaßnahmen | E37: 20000 | F37: =E37 -> 20000
C38: 21 | D38: Aufnahme eines neuen Kredits | E38: 60000 | F38: =E38 -> 60000
C39: 22 | D39: Zahlungseingang zu Forderungen aLuL (aus Vorperioden) | E39: 24000 | F39: =E39 -> 24000
C40: 23 | D40: Kauf einer neuen Bearbeitungsmaschine (zu AK netto) | E40: 55000 | F40: =E40 -> 55000
C41: 24 | D41: Anfangsbestand an liquiden Mitteln lt. Bilanz | E41: 70000
C42: 25 | D42: Endbestand an liquiden Mitteln lt. Bilanz | E42: 3200

Sheet Erfolgsrechnung_A
C3: =Daten!C3 -> Wissenstest Erfolgsrechnung (GuV, CF)
C4: 1. Erfolgsrechnung
C6: Nr. | D6: Position | E6: Betrag [EUR] | F6: Anmerkung (Bezug zu Pos. … der Daten)
C7: 01 | D7: Umsatzerlöse
C8: 02 | D8: + Bestandsänderung bei fertigen Erzeugnissen
C9: 03 | D9: + ?
C10: 04 | D10: + ?
C11: 05 | D11: ./. Materialaufwand (RHB-Verbrauch)
C12: 06 | D12: ./. Aufwendungen für bezogene Leistungen
C13: 07 | D13: ./. Löhne, Gehälter
C14: 08 | D14: ./. Soziale Abgaben
C15: 09 | D15: ./. Abschreibungen auf Sachanlagen
C16: 10 | D16: ./. Sonstige betriebliche Aufwendungen
C17: 11 | D17: ./. Sonstige (abzugsfähige) Steuern
C18: 12 | D18: = Betriebsergebnis
C19: 13 | D19: ?
C20: 14 | D20: ?
C21: 15 | D21: = Finanzergebnis
C22: 16 | D22: = ?
C23: 17 | D23: Außerordentliche Erträge
C24: 18 | D24: + sonstige einmalige Erträge
C25: 19 | D25: ./. ?
C26: 20 | D26: = ?
C27: 21 | D27: = Ergebnis vor Ertragsteuern

Sheet Erfolgsrechnung_L (hidden)
C3: =Daten!C3 -> Wissenstest Erfolgsrechnung (GuV, CF)
C4: 1. Erfolgsrechnung
C6: Nr. | D6: Position | E6: Betrag [EUR] | F6: Anmerkung (Bezug zu Pos. … der Daten)
C7: 01 | D7: Umsatzerlöse | E7: =Daten!E20 -> 480000 | F7: Pos. 02 der Datentabelle
C8: 02 | D8: + Bestandsänderung bei fertigen Erzeugnissen | E8: =Daten!E21-Daten!E19 -> 35000 | F8: Differenz "Endbestand ./. Anfangs-bestand" ( Pos. 03, 01)
C9: 03 | D9: + andere aktivierte Eigenleistungen | E9: =Daten!E22 -> 12000 | F9: Pos. 04
C10: 04 | D10: + sonstige betriebliche Erträge | E10: =Daten!E23 -> 1200 | F10: Pos. 05
C11: 05 | D11: ./. Materialaufwand (RHB-Verbrauch) | E11: =Daten!E26 -> 145000 | F11: Pos. 09
C12: 06 | D12: ./. Aufwendungen für bezogene Leistungen | E12: =Daten!E27 -> 35000 | F12: Pos. 10
C13: 07 | D13: ./. Löhne, Gehälter | E13: =Daten!E28 -> 95000 | F13: Pos. 11
C14: 08 | D14: ./. Soziale Abgaben | E14: =Daten!E29 -> 38000 | F14: Pos. 12
C15: 09 | D15: ./. Abschreibungen auf Sachanlagen | E15: =Daten!E30 -> 32000 | F15: Pos. 13
C16: 10 | D16: ./. Sonstige betriebliche Aufwendungen | E16: =Daten!E31 -> 35000 | F16: Pos. 14
C17: 11 | D17: ./. Sonstige (abzugsfähige) Steuern | E17: =Daten!E32 -> 29000 | F17: Pos. 15
C18: 12 | D18: = Betriebsergebnis | E18: =E7+E8+E9+E10-SUM(E11:E17) -> 119200
C19: 13 | D19: Finanzerträge | E19: =Daten!E33 -> 2000 | F19: Pos. 16
C20: 14 | D20: .(. Zinsaufwendungen | E20: =Daten!E34 -> 5000 | F20: Pos. 17
C21: 15 | D21: = Finanzergebnis | E21: =E19-E20 -> -3000
C22: 16 | D22: = Ergebnis der gewöhnlichen Geschäftstätigkeit | E22: =E18+E21 -> 116200 | F22: Pos. 12 + Pos. 15
C23: 17 | D23: Außerordentliche Erträge | E23: =Daten!E37 -> 20000 | F23: Pos. 20
C24: 18 | D24: + sostige einmalige Erträge | E24: =Daten!E24-20000 -> 6000 | F24: Pos. 06 (Erlöse ./. Buchwert)
C25: 19 | D25: ./. Außerordentliche Aufwendungen (apm Abschreibungen) | E25: =Daten!E36 -> 3500 | F25: Pos. 19
C26: 20 | D26: = Außerordentliches Ergebnis | E26: =E23+E24-E25 -> 22500 | F26: Pos. 17 + Pos. 18 ./. Pos. 19
C27: 21 | D27: = Ergebnis vor Ertragsteuern | E27: =E22+E26 -> 138700 | F27: Pos. 16 + Pos. 20

Sheet Cashflowrechnung_A
C3: =Daten!C3 -> Wissenstest Erfolgsrechnung (GuV, CF)
C4: 2. Cashflowrechnung
C6: Nr. | D6: Position | E6: Betrag | F6: Anmerkung (Bezug zu Pos. … der Daten)
C7: 01 | D7: Anfangsbestand an liquiden Mitteln
C9: 02 | D9: + Einzahlungen aus Umsatzerlösen
C10: 03 | D10: + Beglichene Forderungen aLuL
C11: 04 | D11: + Erlöse aus Kantinen-Geschäften
C12: 05 | D12: + Erhaltene Zinszahlungen
C13: 06 | D13: ./. Einkauf von Rohstoffen und andern Vorprodukten
C14: 07 | D14: ./. Ausgaben für bezogene fremde Leistungen
C15: 08 | D15: ./. Löhne, Gehälter
C16: 09 | D16: ./. Soziale Abgaben
C17: 10 | D17: ./. Ausgaben sonstige betrieblcihe Aufwendungen
C18: 11 | D18: ./. Sonstige Steuern
C19: 13 | D19: ./. Gezahlte Zinsen
C20: 13 | D20: = Cashflow aus betrieblicher Tätigkeit
C21: 14 | D21: + Einzahlung aus Verkauf einer Maschine
C22: 15 | D22: + Zuschüsse für Umweltschutzmaßnahmen
C23: 16 | D23: ./. Kauf einer neuen Maschine
C24: 17 | D24: = Cashflow aus Investitionstätigkeit
C25: 18 | D25: + Einzahlung aus Kreditaufnahme
C26: 19 | D26: ./. Auszahlung Tilgung von Krediten
C27: 20 | D27: = Casflow aus Finanzierungstätigkeit
C28: 21 | D28: = Cashlow gesamt
C30: 22 | D30: Anfangsbestand an liquiden Mitteln + Netto-Cashflow
C31: 23 | D31: Zum Vergleich: Endbestand an liquiden Mitteln | E31: =Daten!E42 -> 3200 | F31: =IF(E30=E3:E31,"Rechnung stimmt!","Rechnung stimmt noch nicht!") -> Rechnung stimmt noch nicht!
D33: Gewinn vor Ertragsteuern: | F33: EUR
D34: Veränderung der liquiden Mittel (EB ./. AB) | F34: EUR

Sheet Cashflowrechnung_L (hidden)
C3: =Daten!C3 -> Wissenstest Erfolgsrechnung (GuV, CF)
C4: 2. Cashflowrechnung
C6: Nr. | D6: Position | E6: Betrag | F6: Anmerkung (Bezug zu Pos. … der Daten)
C7: 01 | D7: Anfangsbestand an liquiden Mitteln | E7: =Daten!E41 -> 70000 | F7: Pos. 24 der Datentabelle
C9: 02 | D9: + Einzahlungen aus Umsatzerlösen | E9: =Daten!F20 -> 195000 | F9: Pos. 02
C10: 03 | D10: + Beglichene Forderungen aLuL (Vorperioden) | E10: =Daten!F39 -> 24000 | F10: Pos. 22 d
C11: 04 | D11: + Erlöse aus Kantinen-Geschäften | E11: =Daten!F23 -> 1200 | F11: Pos. 05
C12: 05 | D12: + Erhaltene Zinszahlungen | E12: =Daten!F33 -> 2000 | F12: Pos. 16
C13: 06 | D13: ./. Einkauf von Rohstoffen und andern Vorprodukten | E13: =Daten!F25 -> 45000 | F13: Pos. 07
C14: 07 | D14: ./. Ausgaben für bezogene fremde Leistungen | E14: =Daten!F27 -> 35000 | F14: Pos. 10
C15: 08 | D15: ./. Löhne, Gehälter | E15: =Daten!F28 -> 95000 | F15: Pos. 11
C16: 09 | D16: ./. Soziale Abgaben | E16: =Daten!F29 -> 38000 | F16: Pos. 09
C17: 10 | D17: ./. Ausgaben sonstige betriebliche Aufwendungen | E17: =Daten!F31 -> 35000 | F17: Pos. 14
C18: 11 | D18: ./. Sonstige Steuern | E18: =Daten!F32 -> 29000 | F18: Pos. 15
C19: 13 | D19: ./. Gezahlte Zinsen | E19: =Daten!F34 -> 5000 | F19: Pos. 17
C20: 13 | D20: = Cashflow aus betrieblicher Tätigkeit | E20: =SUM(E9:E12)-SUM(E13:E19) -> -59800 | F20: (Summe Pos. 02 bis 13 der CF-Rechnung)
C21: 14 | D21: + Einzahlung aus Verkauf einer Maschine | E21: =Daten!F24 -> 26000 | F21: Pos. 06 der Datentabelle
C22: 15 | D22: + Zuschüsse für Umweltschutzmaßnahmen | E22: =Daten!F37 -> 20000 | F22: Pos. 20
C23: 16 | D23: ./. Kauf einer neuen Maschine | E23: =Daten!F40 -> 55000 | F23: Pos. 23
C24: 17 | D24: = Cashflow aus Investitionstätigkeit | E24: =E21+E22-E23 -> -9000 | F24: (Summe Pos. 14 bis 16 der CF-Rechnung)
C25: 18 | D25: + Einzahlung aus Kreditaufnahme | E25: =Daten!F38 -> 60000 | F25: Pos. 21
C26: 19 | D26: ./. Auszahlung Tilgung von Krediten | E26: =Daten!F35 -> 58000 | F26: Pos. 18
C27: 20 | D27: = Casflow aus Finanzierungstätigkeit | E27: =E25-E26 -> 2000 | F27: (Summe Pos. 18 und 19 der CF-Rechnung)
C28: 21 | D28: = Netto-Cashflow | E28: =E20+E24+E27 -> -66800 | F28: (Summe Pos. 13, 17 und 20 der CF-Rechnung)
C30: 22 | D30: Anfangsbestand an liquiden Mitteln + Netto-Cashflow | E30: =E7+E28 -> 3200 | F30: Pos. 1 plus Pos. 21 der CF-Rechnung, zu vergleichen mit Pos. 24 der datentabelle
C31: 23 | D31: Zum Vergleich: Endbestand an liquiden Mitteln | E31: =Daten!E42 -> 3200 | F31: =IF(E30=E3:E31,"Rechnung stimmt!","Rechnung stimmt noch nicht!") -> Rechnung stimmt!
D33: Gewinn vor Ertragssteuern: | E33: =Erfolgsrechnung_L!E27 -> 138700 | F33: EUR
D34: Abnahme der liquiden Mittel | E34: =E31-E7 -> -66800 | F34: EUR
